{"text_format":"3","workbook":"xlsx","n_sheets":2,"sheets":["AKO POUŽÍVAŤ TENTO HÁROK","KLASIFIKAČNÝ HÁROK"],"not_rendered":{"defined_names":5},"read":"whole","date_system":"1900"}

{"sheet":"AKO POUŽÍVAŤ TENTO HÁROK","index":0,"n_rows":10,"n_cols":2,"rows_kept":10}
[null,"POKYNY"]
[null,"Pomocou hárka KLASIFIKAČNÝ HÁROK môžete vypočítať klasifikáciu, pri ktorej má každá priradená úloha individuálne stanovenú bodovú hodnotu. "]
[null,"Pokyny: Nezabudnite si uložiť záložné kópie klasifikácie."]
[null,"1. Zadajte názov školy, informácie o vyučovacom predmete, mená študentov a ID študentov (voliteľné).   "]
[null,"2. Upravte tabuľku klasifikácie a študijného priemeru tak, aby zodpovedala typickému systému hodnotenia, ktorý používate."]
[null,"3. Počínajúc od bunky G7 zadajte názvy priradených úloh alebo testov spolu s ich percentuálnou hodnotou (napr. Záverečná a 50 %). "]
[null,"4. Zadajte skóre jednotlivých študentov za jednotlivé priradené úlohy alebo testy. Stĺpce Skóre, Klasifikácia a Študijný priemer sa vypočítajú automaticky, v prípade potreby ich však môžete prepísať. Vzhľadom na spôsob výpočtu klasifikácie nie je priemerná ani konečná klasifikácia úplná, kým nie sú zadané všetky skóre."]
[null,"Ak chcete zmeniť oblasť tlače, použite príkaz Oblasť tlače v ponuke Rozloženie strany."]
[null,"Skóre, klasifikácia a študijný priemer nie sú platné, kým nie je vyplnených 100 % testov a priradených úloh. "]
[null,"Do buniek G7 až W8 zadajte jednotlivé priradené úlohy alebo testy a ich percentuálne hodnoty v rámci celkovej klasifikácie."]

{"sheet":"KLASIFIKAČNÝ HÁROK","index":1,"n_rows":20,"n_cols":23,"rows_kept":20,"merged":[[5,1,5,5],[6,1,6,3],[6,4,6,5],[7,1,8,3],[7,4,7,5],[8,4,8,5],[15,1,15,5],[16,1,16,2],[17,1,17,2],[18,1,18,2],[19,1,19,2]]}
[null,"NÁZOV ŠKOLY"]
[]
[{"$nulls":6},"Skóre",{"v":0,"d":"0%"},{"v":0.6,"d":"60%"},{"v":0.63,"d":"63%"},{"v":0.67,"d":"67%"},{"v":0.7,"d":"70%"},{"v":0.73,"d":"73%"},{"v":0.77,"d":"77%"},{"v":0.8,"d":"80%"},{"v":0.83,"d":"83%"},{"v":0.87,"d":"87%"},{"v":0.9,"d":"90%"},{"v":0.93,"d":"93%"},{"v":0.97,"d":"97%"}]
[{"$nulls":6},"Klasifikácia","F","D-","D","D+","C-","C","C+","B-","B","B+","A-","A","A+"]
[{"$nulls":6},"Študijný priemer",0,0.67,1,1.33,1.67,2,2.33,2.67,3,3.33,3.67,4,4]
[null,"Meno učiteľa"]
[null,"Vyučovací predmet/projekt",null,null,"Názov priradenej úlohy alebo testu"]
[null,"Rok/semester/štvrťrok",null,null,"Percentuálna hodnota (celkový súčet má byť 100 %)"]
[{"$nulls":4},{"$f":"\"Celková percentuálna hodnota: \"&SUM(G8:W8)*100&\"%\"","v":"Celková percentuálna hodnota: 0%"}]
[null,"Meno študenta","ID študenta","Skóre","Klasifikácia","Študijný priemer","Stĺpec6","Stĺpec7","Stĺpec8","Stĺpec9","Stĺpec10","Stĺpec11","Stĺpec12","Stĺpec13","Stĺpec14","Stĺpec15","Stĺpec16","Stĺpec17","Stĺpec18","Stĺpec19","Stĺpec20","Stĺpec21","Stĺpec22"]
[{"$nulls":3},{"$f":"(IF(SUM(Klasifikácia[[#This Row],[Stĺpec6]:[Stĺpec22]]),ROUND(SUMPRODUCT($G$8:$W$8,Klasifikácia[[#This Row],[Stĺpec6]:[Stĺpec22]]),2),\"\"))","v":""},{"$f":"IF(Klasifikácia[[#This Row],[Skóre]]<>\"\",HLOOKUP(Klasifikácia[[#This Row],[Skóre]],KlasifikačnáTabuľka,2),\"\")","v":""},{"$f":"IF(Klasifikácia[[#This Row],[Skóre]]<>\"\",HLOOKUP(Klasifikácia[[#This Row],[Skóre]],KlasifikačnáTabuľka,3),\"\")","v":""}]
[{"$nulls":3},{"$f":"(IF(SUM(Klasifikácia[[#This Row],[Stĺpec6]:[Stĺpec22]]),ROUND(SUMPRODUCT($G$8:$W$8,Klasifikácia[[#This Row],[Stĺpec6]:[Stĺpec22]]),2),\"\"))","v":""},{"$f":"IF(Klasifikácia[[#This Row],[Skóre]]<>\"\",HLOOKUP(Klasifikácia[[#This Row],[Skóre]],KlasifikačnáTabuľka,2),\"\")","v":""},{"$f":"IF(Klasifikácia[[#This Row],[Skóre]]<>\"\",HLOOKUP(Klasifikácia[[#This Row],[Skóre]],KlasifikačnáTabuľka,3),\"\")","v":""}]
[{"$nulls":3},{"$f":"(IF(SUM(Klasifikácia[[#This Row],[Stĺpec6]:[Stĺpec22]]),ROUND(SUMPRODUCT($G$8:$W$8,Klasifikácia[[#This Row],[Stĺpec6]:[Stĺpec22]]),2),\"\"))","v":""},{"$f":"IF(Klasifikácia[[#This Row],[Skóre]]<>\"\",HLOOKUP(Klasifikácia[[#This Row],[Skóre]],KlasifikačnáTabuľka,2),\"\")","v":""},{"$f":"IF(Klasifikácia[[#This Row],[Skóre]]<>\"\",HLOOKUP(Klasifikácia[[#This Row],[Skóre]],KlasifikačnáTabuľka,3),\"\")","v":""}]
[{"$nulls":3},{"$f":"(IF(SUM(Klasifikácia[[#This Row],[Stĺpec6]:[Stĺpec22]]),ROUND(SUMPRODUCT($G$8:$W$8,Klasifikácia[[#This Row],[Stĺpec6]:[Stĺpec22]]),2),\"\"))","v":""},{"$f":"IF(Klasifikácia[[#This Row],[Skóre]]<>\"\",HLOOKUP(Klasifikácia[[#This Row],[Skóre]],KlasifikačnáTabuľka,2),\"\")","v":""},{"$f":"IF(Klasifikácia[[#This Row],[Skóre]]<>\"\",HLOOKUP(Klasifikácia[[#This Row],[Skóre]],KlasifikačnáTabuľka,3),\"\")","v":""}]
[{"$nulls":3},{"$f":"(IF(SUM(Klasifikácia[[#This Row],[Stĺpec6]:[Stĺpec22]]),ROUND(SUMPRODUCT($G$8:$W$8,Klasifikácia[[#This Row],[Stĺpec6]:[Stĺpec22]]),2),\"\"))","v":""},{"$f":"IF(Klasifikácia[[#This Row],[Skóre]]<>\"\",HLOOKUP(Klasifikácia[[#This Row],[Skóre]],KlasifikačnáTabuľka,2),\"\")","v":""},{"$f":"IF(Klasifikácia[[#This Row],[Skóre]]<>\"\",HLOOKUP(Klasifikácia[[#This Row],[Skóre]],KlasifikačnáTabuľka,3),\"\")","v":""}]
[]
[null,"Súhrn vyučovacieho predmetu",null,"Skóre","Klasifikácia","Študijný priemer","","","","","","","","","","",""]
[null," Priemer",null,{"$f":"IFERROR(AVERAGE(Klasifikácia[[#All],[Skóre]]),0)","v":{"v":0,"d":"0.0%"}},{"$f":"IFERROR(HLOOKUP(D18,KlasifikačnáTabuľka,2),\"\")","v":"F"},{"$f":"IFERROR(AVERAGE(Klasifikácia[[#All],[Študijný priemer]]),0)","v":0},"","","","","","","","","","","","","","","","",""]
[null," Najvyššie skóre",null,{"$f":"IFERROR(MAX(Klasifikácia[[#All],[Skóre]]),0)","v":{"v":0,"d":"0.0%"}},{"$f":"IFERROR(HLOOKUP(D19,KlasifikačnáTabuľka,2),\"\")","v":"F"},{"$f":"IFERROR(MAX(Klasifikácia[[#All],[Študijný priemer]]),0)","v":0},"","","","","","","","","","","","","","","","",""]
[null," Najnižšie skóre",null,{"$f":"IFERROR(MIN(Klasifikácia[[#All],[Skóre]]),0)","v":{"v":0,"d":"0.0%"}},{"$f":"IFERROR(HLOOKUP(D20,KlasifikačnáTabuľka,2),\"\")","v":"F"},{"$f":"IFERROR(MIN(Klasifikácia[[#All],[Študijný priemer]]),0)","v":0},"","","","","","","","","","","","","","","","",""]